bitfinex/quotes_ETHUSD_20250822
["timestamp","ask_amount","ask_price","bid_price","bid_amount"]
[1755854912254,0.7762,4323.8,4323.7,6.28683391]
[1755854912455,0.7762,4323.8,4323.6,1.78]
[1755854912771,0.3234,4323.8,4323.7,6.28583391]
[1755854912929,0.0192,4323.8,4323.7,6.28583391]
[1755854913659,0.7762,4323.8,4323.6,1.78]
[1755854913971,0.3234,4323.8,4323.7,3.973]
[1755854914370,0.7762,4323.8,4323.7,3.973]
[1755854915083,0.7762,4323.8,4323.6,4.09288029]
[1755854915084,0.7762,4323.8,4323.6,1.78]
[1755854915367,7.01592007,4323.7,4323.6,3.972]
[1755854915727,7.32012007,4323.7,4323.6,3.972]
[1755854915971,9.63297177,4323.7,4323.6,3.972]
[1755854916137,8.59010925,4323.7,4322.9,1.779]
[1755854916328,0.4528,4323.6,4323.0,6.28516411]
[1755854916527,0.3042,4323.1,4323.0,6.28516411]
[1755854916763,0.757,4323.1,4323.0,6.28516411]
[1755854917531,0.757,4323.1,4323.0,3.972]
[1755854917852,0.757,4323.1,4322.9,1.779]
[1755854918158,0.3042,4323.1,4323.0,3.972]
[1755854918752,0.7622,4323.1,4323.0,3.972]
[1755854919265,0.7622,4323.1,4323.0,6.28520842]
[1755854919470,0.7622,4323.1,4323.0,2.31320842]
[1755854919650,0.7622,4323.1,4323.0,6.28520842]
[1755854920052,0.7622,4323.1,4323.0,3.972]
[1755854921457,3.48870545,4323.1,4322.9,1.779]
[1755854921661,3.03070545,4323.1,4323.0,3.972]
[1755854921970,2.31320966,4323.0,4322.2,4.09261965]
[1755854922166,2.31322481,4323.0,4322.3,3.971]
[1755854922349,0.41331464,4323.1,4322.3,3.971]
[1755854922550,0.458,4322.9,4322.5,2.3134628]
[1755854922757,0.3024,4322.6,4322.5,2.3134628]
[1755854923076,0.7604,4322.6,4322.5,3.971]
[1755854923440,0.7604,4322.6,4322.5,6.28447599]
[1755854923937,0.7596,4322.6,4322.5,6.28447599]
[1755854924362,0.3621773,4322.9,4322.7,2.31336798]
[1755854924536,0.3621773,4322.9,4322.8,3.971]
[1755854924734,1.1225773,4322.9,4322.8,3.971]
[1755854927081,3.02243997,4322.9,4322.5,2.31346255]
[1755854927274,0.3024,4322.9,4322.6,3.971]
[1755854927577,0.458,4322.8,4322.6,3.971]
[1755854927777,0.3024,4322.7,4322.5,2.31346255]
[1755854927955,0.3024,4322.7,4322.6,3.971]
[1755854928647,0.7604,4322.7,4322.6,3.971]
[1755854929470,0.7604,4322.7,4322.6,6.28442247]
[1755854929682,0.7604,4322.7,4322.6,2.31342247]
[1755854929882,0.7604,4322.7,4322.6,6.28442247]
[1755854930091,15.56283779,4323.0,4322.7,2.31335913]
[1755854930251,16.02083779,4323.0,4322.8,3.971]
[1755854930653,0.7604,4322.9,4322.8,3.971]
[1755854932183,0.7604,4322.9,4322.8,3.97]
[1755854934847,15.2292879,4323.0,4322.8,3.97]
[1755854935047,0.7604,4322.9,4322.8,3.97]
[1755854935854,0.7614,4322.9,4322.8,3.97]
[1755854936182,0.7606,4322.9,4322.8,3.97]
[1755854938271,7.32764592,4322.9,4322.8,3.97]
[1755854938962,0.7606,4322.9,4322.8,3.97]
[1755854939163,7.32764592,4322.9,4322.8,3.97]
[1755854939582,0.7606,4322.9,4322.8,3.97]
[1755854939779,7.32764592,4322.9,4322.8,3.97]
[1755854940581,7.32764592,4322.9,4322.6,0.004]
[1755854940794,7.32764592,4322.9,4322.7,3.969]
[1755854940795,0.458,4322.8,4322.7,3.969]
[1755854941103,0.7604,4322.8,4322.7,3.969]
[1755854941852,0.458,4322.8,4322.7,3.969]
[1755854942080,0.82017172,4322.8,4322.7,3.969]
[1755854942402,0.82017172,4322.8,4322.7,6.30820263]
[1755854942403,0.36217172,4322.8,4322.7,6.30820263]
[1755854942560,0.36217172,4322.8,4322.7,6.28676895]
[1755854942891,0.001,4322.9,4322.8,2.31331544]
[1755854943105,0.001,4323.4,4322.7,9.28676895]
[1755854943106,0.001,4323.4,4323.3,2.3130479]
[1755854943289,0.001,4323.4,4323.3,8.08517837]
[1755854943603,0.001,4323.4,4323.3,8.0620479]
[1755854944294,0.001,4323.4,4323.3,8.1780479]
[1755854944492,1e-08,4323.4,4323.3,11.8380479]
[1755854944806,1e-08,4323.4,4323.3,7.2090479]
[1755854945004,1e-08,4323.4,4323.3,11.8370479]
[1755854946564,1e-08,4323.4,4323.3,7.8690479]
[1755854946755,1e-08,4323.4,4323.3,7.2090479]
[1755854946958,1e-08,4323.4,4323.3,11.1770479]
[1755854948277,0.01940001,4323.8,4323.7,2.31283391]
[1755854948479,0.01940001,4323.8,4323.7,6.30396224]
[1755854948694,0.01940001,4323.8,4323.7,6.28083391]
[1755854950388,0.01940001,4323.8,4323.7,2.31283391]
[1755854950571,0.78740001,4323.8,4323.7,2.31283391]
[1755854950767,0.47240001,4323.8,4323.7,6.27983391]
[1755854950967,0.01940001,4323.8,4323.7,6.27983391]
[1755854952994,0.78740001,4323.8,4323.7,6.27983391]
[1755854953213,0.01940001,4323.8,4323.7,6.27883391]
[1755854953702,0.38144142,4323.8,4323.7,6.27883391]
[1755854955410,0.69644142,4323.8,4323.7,2.31283391]
[1755854955615,1.14944142,4323.8,4323.7,6.27883391]
[1755854956492,0.78740001,4323.8,4323.6,2.31285787]
[1755854956703,0.453,4323.7,4323.4,2.3129944]
[1755854956993,0.01940001,4323.8,4323.7,2.31283391]
[1755854957200,0.33440001,4323.8,4323.7,6.27783391]
[1755854957604,0.78740001,4323.8,4323.7,6.27783391]
[1755854958599,0.78740001,4323.8,4323.7,3.965]
[1755854959122,0.78740001,4323.8,4323.7,6.27783391]
[1755854960316,0.78740001,4323.8,4323.7,3.965]
[1755854960679,0.78740001,4323.8,4323.7,6.27783391]
[1755854960680,7.35364593,4323.8,4323.7,6.27783391]
[1755854963279,0.78660001,4323.8,4323.7,6.27783391]
[1755854964881,0.78660001,4323.8,4323.7,2.31283391]
[1755854965110,0.78660001,4323.8,4323.7,6.27683391]
[1755854965315,0.47160001,4323.8,4323.7,6.27683391]
[1755854965610,0.01860001,4323.8,4323.7,6.27683391]
[1755854966012,0.47160001,4323.8,4323.7,6.27683391]
[1755854966882,0.78660001,4323.8,4323.7,6.27683391]
[1755854967518,0.01860001,4323.8,4323.7,6.27683391]
[1755854971587,0.001,4323.9,4323.7,9.93683391]
[1755854971812,1e-08,4323.9,4323.8,6.11190822]
[1755854971989,1e-08,4323.9,4323.8,6.08878042]
[1755854972918,0.001,4324.2,4324.1,2.31261996]
[1755854972919,0.00020001,4324.2,4324.1,2.31261996]
[1755854973124,0.00020001,4324.2,4324.1,8.05461996]
[1755854973322,0.00020001,4324.2,4324.1,11.05461996]
[1755854974434,0.001,4324.4,4324.3,2.312513]
[1755854974733,0.001,4324.4,4324.3,6.275513]
[1755854974941,0.001,4324.4,4324.3,2.312513]
[1755854975230,0.769,4324.4,4324.3,6.275513]
[1755854976134,0.454,4324.4,4324.3,6.275513]
[1755854976325,0.001,4324.4,4324.3,6.275513]
[1755854979020,0.001,4324.4,4324.3,2.312513]
[1755854979220,1e-08,4324.8,4324.7,2.31229911]
[1755854979439,0.31470001,4324.8,4324.7,2.31229911]
[1755854979808,0.31470001,4324.8,4324.7,3.961]
[1755854979809,6.88174593,4324.8,4324.7,3.961]
[1755854980042,7.35214593,4324.8,4324.7,3.961]
[1755854980211,7.35214593,4324.8,4324.3,2.31247133]
[1755854980537,0.4704,4324.7,4324.4,3.961]
[1755854980740,0.3147,4324.5,4324.4,4.13219394]
[1755854980971,0.3147,4324.5,4324.4,6.44465347]
[1755854981142,0.7851,4324.5,4324.4,6.44465347]
[1755854984543,0.36199464,4324.7,4324.6,2.31235258]
[1755854984712,0.36199464,4324.7,4324.6,6.27235258]
[1755854984907,0.67669464,4324.7,4324.6,6.27235258]
[1755854985314,1.14709464,4324.7,4324.6,6.27235258]
[1755854986042,0.67669464,4324.7,4324.6,6.27235258]
[1755854986247,1.14709464,4324.7,4324.6,6.27235258]
[1755854986410,1.14629464,4324.7,4324.6,6.27235258]
[1755854987450,1.14629464,4324.7,4324.6,2.31235258]
[1755854987654,1.14629464,4324.7,4324.6,3.96]
[1755854987861,0.7851,4324.7,4324.6,3.96]
[1755854988071,0.7851,4324.7,4324.4,0.17119394]
[1755854988379,0.4704,4324.6,4324.5,3.96]
[1755854988669,0.7851,4324.6,4324.5,3.96]
[1755854989175,0.7851,4324.6,4324.5,6.27240605]
[1755854989669,0.7851,4324.6,4324.5,3.96]
[1755854990372,0.7851,4324.6,4324.5,6.27240605]
[1755854991162,0.7851,4324.6,4324.5,3.96]
[1755854991530,1.14709598,4324.6,4324.5,3.96]
[1755854991730,1.88231057,4324.6,4324.5,3.96]
[1755854991932,4.19466315,4324.6,4324.5,3.96]
[1755854992664,4.19466315,4324.6,4324.1,1.779]
[1755854992665,2.31246052,4324.4,4324.1,1.779]
[1755854992965,6.88174592,4324.2,4324.1,1.779]
[1755854993353,7.35214592,4324.2,4324.1,1.779]
[1755854993549,8.50281441,4324.2,4324.1,1.779]
[1755854993730,8.50281441,4324.2,4324.1,5.738]
[1755854996269,7.35214592,4324.2,4324.1,5.738]
[1755854997362,7.35134592,4324.2,4324.1,8.05061996]
[1755854997735,7.35134592,4324.2,4324.1,5.738]
[1755854998639,7.35134592,4324.2,4324.1,8.05061996]
[1755854999339,7.35134592,4324.2,4324.0,3.959]
[1755854999558,0.4704,4324.1,4324.0,3.959]
[1755854999873,0.7851,4324.1,4323.8,0.02]
[1755855000078,0.7851,4324.1,4323.9,3.959]
[1755855000379,2.31272693,4323.9,4323.8,0.02]
[1755855000550,2.62742693,4323.9,4323.8,0.02]
[1755855000753,3.09782693,4323.9,4323.8,0.02]
[1755855006470,3.66,4323.8,4323.6,0.004]
[1755855006748,9.85457983,4323.7,4323.6,0.004]
[1755855006945,13.81257983,4323.7,4323.6,0.004]
[1755855007146,14.28297983,4323.7,4323.6,0.004]
[1755855008970,17.28297983,4323.7,4323.6,0.004]
[1755855009272,20.04695327,4323.7,4323.6,0.004]
[1755855009480,20.04615327,4323.7,4323.6,0.004]
[1755855010151,20.408282,4323.7,4323.6,0.004]
[1755855011775,2.3130479,4323.3,4323.2,0.004]
[1755855011958,13.14509382,4323.3,4323.2,0.004]
[1755855012259,18.67567889,4323.3,4323.2,0.004]
[1755855012468,18.76844289,4323.3,4323.2,0.004]
[1755855013347,16.45539499,4323.3,4323.2,0.004]
[1755855013681,18.76844289,4323.3,4323.2,0.004]
[1755855014373,14.81044289,4323.3,4323.2,0.004]
[1755855015679,0.092764,4323.3,4323.2,0.004]
[1755855015882,6.56704592,4323.6,4323.2,2.3171014]
[1755855016067,6.56704592,4323.6,4323.2,0.004]
[1755855016271,0.36212873,4323.7,4323.2,0.004]
[1755855016453,2.92760031,4324.6,4323.3,0.02313047]
[1755855016454,6.56704592,4324.6,4323.3,0.02313047]
[1755855016653,3.958,4324.5,4323.4,0.18061305]
[1755855016848,3.958,4324.5,4324.0,2.31266107]
[1755855017079,3.0,4324.5,4324.1,2.31261415]
[1755855017386,6.65977892,4324.6,4323.8,0.0231278]
[1755855017550,6.56704592,4324.2,4323.8,2.31273054]
[1755855017752,6.56704592,4324.2,4323.9,2.31268435]
[1755855018273,6.56704592,4324.2,4324.0,2.31266943]
[1755855018586,6.56704592,4324.2,4324.1,2.31261996]
[1755855019060,4.11126344,4324.8,4323.8,2.33588821]
[1755855019061,0.02000001,4324.8,4324.5,2.31236968]
[1755855020174,0.02000001,4324.8,4324.4,0.02312459]
[1755855020388,0.38202608,4324.8,4324.4,2.33555321]
[1755855020599,0.38202608,4324.8,4324.5,2.31240605]
[1755855020778,0.38202608,4324.8,4324.7,2.31229911]
[1755855021870,0.38122608,4324.8,4324.7,2.31229911]
[1755855022090,0.38122608,4324.8,4324.7,4.09129911]
[1755855022386,0.38122608,4324.8,4324.7,4.1144221]
[1755855022387,0.01920001,4324.8,4324.7,4.1144221]
[1755855023284,0.01920001,4324.8,4324.7,7.7744221]
[1755855023487,0.01920001,4324.8,4324.7,7.09129911]
[1755855023653,0.01920001,4324.8,4324.7,11.04729911]
[1755855024912,0.01920001,4324.8,4324.7,7.26171713]
[1755855025084,0.01920001,4324.8,4324.7,11.21771713]
[1755855026048,0.01920001,4324.8,4324.7,7.26171713]
[1755855026220,0.01920001,4324.8,4324.7,8.21771713]
[1755855026509,0.01920001,4324.8,4324.7,8.6869127]
[1755855026718,0.01920001,4324.8,4324.7,5.90441802]
[1755855026914,0.77360001,4324.8,4324.7,5.90441802]
[1755855027505,0.77360001,4324.8,4324.7,8.21671713]
[1755855027506,0.01920001,4324.8,4324.7,8.21671713]
[1755855030125,0.01920001,4324.8,4324.7,5.90341802]
[1755855030828,0.01920001,4324.8,4324.7,8.21571713]
[1755855032527,0.01920001,4324.8,4324.7,8.57766413]
[1755855034097,0.01840001,4324.8,4324.7,8.57666413]
[1755855034879,0.01840001,4324.8,4324.7,8.21471713]
[1755855037324,0.01840001,4324.8,4324.7,4.26171713]
[1755855037518,0.01840001,4324.8,4324.7,8.23784012]
[1755855037814,0.01840001,4324.8,4324.7,8.21471713]
[1755855038520,0.001,4325.0,4324.7,11.99071713]
[1755855038721,0.001,4325.3,4324.9,0.66]
[1755855039030,0.001,4325.3,4325.2,2.31203181]
[1755855039189,0.2988,4325.3,4325.2,6.26403181]
[1755855039831,0.7273,4325.3,4325.2,6.26403181]
[1755855041803,0.001,4325.3,4325.2,6.26403181]
[1755855042234,0.4295,4325.3,4325.2,6.26403181]
[1755855043045,0.001,4325.3,4325.2,6.26403181]
[1755855043236,0.001,4325.3,4325.2,6.69353181]
[1755855046309,0.0002,4325.3,4325.2,6.69353181]
[1755855047123,0.0002,4325.3,4325.2,9.69353181]
[1755855048448,0.0002,4325.3,4325.2,10.35353181]
[1755855049151,1e-08,4325.4,4325.3,5.97197835]
[1755855049441,1e-08,4325.4,4325.3,6.08717835]
[1755855051843,1e-08,4325.6,4325.5,2.31187145]
[1755855052044,1e-08,4325.6,4325.5,8.06399016]
[1755855052348,1e-08,4325.8,4325.6,2.97181801]
[1755855052641,1e-08,4325.8,4325.7,9.9448822]
[1755855052841,0.001,4326.2,4325.9,0.66]
[1755855052842,1e-08,4326.2,4325.9,0.66]
[1755855053045,1e-08,4326.2,4326.1,3.0]
[1755855053251,1e-08,4326.2,4326.1,5.97155081]
[1755855053478,0.79028544,4327.4,4326.1,5.97155081]
[1755855053479,1e-08,4326.8,4326.7,2.97123026]
[1755855053758,1e-08,4326.8,4326.7,7.86443026]
[1755855054054,1e-08,4326.8,4326.7,11.81443026]
[1755855054221,1e-08,4326.8,4326.7,12.24293026]
[1755855058667,0.00020001,4327.5,4327.4,2.9708564]
[1755855058868,0.00020001,4327.5,4327.4,7.0350564]
[1755855059235,0.00020001,4327.5,4327.4,7.4635564]
[1755855060571,0.29800001,4327.5,4327.4,7.4635564]
[1755855060763,0.72650001,4327.5,4327.4,2.7393564]
[1755855060945,0.72650001,4327.5,4327.4,6.6883564]
[1755855061146,0.00020001,4327.5,4327.4,6.6883564]
[1755855061469,0.00020001,4327.5,4327.4,6.86161826]
[1755855061675,0.42870001,4327.5,4327.4,6.86161826]
[1755855061977,0.72650001,4327.5,4327.4,9.86161826]
[1755855062542,0.72650001,4327.5,4327.4,5.91261826]
[1755855062876,0.72650001,4327.5,4327.4,9.86061826]
[1755855063176,0.72650001,4327.5,4327.4,2.43761826]
[1755855063341,0.72650001,4327.5,4327.4,6.38561826]
[1755855063741,0.00020001,4327.5,4327.4,6.38561826]
[1755855063946,0.00020001,4327.5,4327.4,7.08034226]
[1755855064177,0.29800001,4327.5,4327.4,7.08034226]
[1755855064350,0.29800001,4327.5,4327.4,10.08034226]
[1755855065143,0.00020001,4327.5,4327.4,10.36584226]
[1755855065861,0.29800001,4327.5,4327.4,9.38561826]
[1755855066661,0.00020001,4327.5,4327.4,10.33111826]
[1755855066988,0.00020001,4327.5,4327.4,10.78891826]
[1755855068764,0.00020001,4327.5,4327.4,10.75901826]
[1755855070064,0.001,4328.4,4328.3,2.31037589]
[1755855070381,0.001,4328.4,4328.3,8.05747964]
[1755855070590,0.001,4328.4,4328.3,8.03437589]
[1755855070794,0.7146,4328.4,4328.3,8.03437589]
[1755855070958,0.7146,4328.4,4328.3,1.777]
[1755855071292,0.7146,4328.4,4328.3,5.724]
[1755855071462,0.7146,4328.4,4328.3,1.777]
[1755855071999,0.7146,4328.4,4328.3,5.724]
[1755855073160,0.7146,4328.4,4328.3,8.03437589]
[1755855074604,0.0002,4328.4,4328.3,11.32757589]
[1755855077600,0.0002,4328.4,4328.3,12.10277589]
[1755855077804,0.0002,4328.4,4328.3,12.53067589]
[1755855078167,1e-08,4328.8,4328.7,2.9701624]
[1755855078393,1e-08,4328.8,4328.7,10.23246402]
[1755855078713,1e-08,4328.8,4328.7,10.7524624]
[1755855079465,1e-08,4328.8,4328.7,13.1954624]
[1755855080167,1e-08,4328.8,4328.7,8.8215624]
[1755855080367,1e-08,4328.8,4328.7,10.3245624]
[1755855081008,1e-08,4328.8,4328.7,10.7524624]
[1755855081175,1e-08,4328.8,4328.7,6.8064624]
[1755855081378,1e-08,4328.8,4328.7,6.3785624]
[1755855081577,0.71440001,4328.8,4328.7,9.3713624]
[1755855081899,0.71440001,4328.8,4328.7,10.0313624]
[1755855082320,2.30909603,4330.7,4328.7,10.0313624]
[1755855082321,0.02,4330.8,4330.7,2.30909552]
[1755855082468,0.7344,4330.8,4330.7,5.722]
[1755855082665,0.7344,4330.8,4330.7,5.723]
[1755855082904,0.7344,4330.8,4330.7,8.03309552]
[1755855083103,0.7336,4330.8,4330.7,5.93971231]
[1755855083269,0.7336,4330.8,4330.7,6.11128149]
[1755855083600,0.7336,4330.8,4330.7,2.16428149]
[1755855083801,0.7336,4330.8,4330.7,6.11228149]
[1755855084005,0.7336,4330.8,4330.7,5.93971231]
[1755855084875,0.7336,4330.8,4330.7,5.724]
[1755855085079,0.7336,4330.8,4330.7,5.93953386]
[1755855085423,0.7336,4330.8,4330.7,8.24862938]
[1755855085910,0.7336,4330.8,4330.7,6.11359429]
[1755855086495,0.7336,4330.8,4330.7,5.93853386]
[1755855086695,0.7336,4330.8,4330.7,0.21553386]
[1755855086898,2.30909552,4330.7,4330.6,3.946]
[1755855087149,1.01866955,4330.7,4330.6,3.946]
[1755855087280,3.02349552,4330.7,4330.4,1.777]
[1755855087486,2.73694884,4330.6,4330.5,3.946]
[1755855087702,3.02354884,4330.6,4330.5,3.946]
[1755855090088,0.7144,4330.6,4330.5,3.946]
[1755855091492,3.38507347,4330.6,4330.5,3.946]
[1755855091707,3.95650079,4330.6,4330.5,3.946]
[1755855093222,3.95650079,4330.6,4330.5,3.944]
[1755855093392,3.95650079,4330.6,4330.4,1.777]
[1755855093591,3.52870079,4330.6,4330.5,3.944]
[1755855094122,1.21955195,4330.6,4330.5,3.944]
[1755855094324,1.64735195,4330.6,4330.5,3.944]
[1755855094825,2.30920217,4330.5,4330.4,1.777]
[1755855095047,3.42127758,4330.5,4328.6,3.0]
[1755855095227,4.13533559,4330.4,4328.8,0.21576503]
[1755855095387,2.30967188,4329.7,4328.9,4.15976503]
[1755855095591,0.2866,4329.0,4328.5,4.08726487]
[1755855095827,0.7144,4329.0,4328.8,2.31009469]
[1755855096008,0.7144,4329.0,4328.9,4.15979968]
[1755855096489,0.7144,4329.0,4328.9,0.21579968]
[1755855096694,0.7144,4329.0,4328.9,4.15979968]
[1755855097095,0.7144,4329.0,4328.9,0.21579968]
[1755855097320,3.32683612,4329.0,4328.9,4.15979968]
[1755855099229,3.32683612,4329.0,4328.9,3.944]
[1755855099596,2.31006056,4328.9,4328.5,1.777]
[1755855099802,2.75866056,4328.9,4328.6,4.16092952]
[1755855100125,0.30243381,4329.0,4328.6,4.16092952]
[1755855100126,0.98570442,4328.8,4328.7,0.21592952]
[1755855100329,1.29870442,4328.8,4328.7,0.21592421]
[1755855100714,1.29870442,4328.8,4328.7,0.21589904]
[1755855101095,1.29870442,4328.8,4328.7,0.21589875]
[1755855101816,3.07170903,4328.8,4328.7,0.21589875]
[1755855102022,2.31016476,4328.7,4328.5,1.95146297]
[1755855102198,0.4486,4328.7,4328.6,4.16089234]
[1755855102397,3.0717624,4328.7,4328.6,4.16089234]
[1755855102833,0.7616,4328.7,4328.6,4.16089234]
[1755855103199,0.7616,4328.7,4328.6,3.945]
[1755855104698,0.7616,4328.7,4328.5,1.95146297]
[1755855104900,0.313,4328.7,4328.6,3.945]
[1755855105542,3.07176818,4328.7,4328.5,1.777]
[1755855105703,0.4486,4328.6,4328.3,0.004]
[1755855106021,5.62332252,4328.4,4328.3,0.004]
[1755855106400,6.07192252,4328.4,4328.3,0.004]
[1755855106604,8.42595099,4328.4,4328.3,0.004]
[1755855107533,9.29900088,4328.4,4328.3,0.004]
[1755855107748,0.66,4328.2,4327.8,0.02]
[1755855107914,2.310803,4327.5,4327.4,0.004]
[1755855108104,6.38595629,4327.5,4327.4,0.004]
[1755855108301,6.83455629,4327.5,4327.4,0.004]
[1755855109603,3.313,4327.5,4327.4,0.004]
[1755855109804,3.313,4327.5,4327.4,0.3049]
[1755855109805,0.36180988,4327.5,4327.4,0.3049]
[1755855110104,0.36180988,4327.5,4327.4,6.5607564]
[1755855110330,0.36180988,4327.5,4327.4,4.2499]
[1755855110504,0.36180988,4327.5,4327.4,6.58386496]
[1755855110708,0.36180988,4327.5,4327.4,7.0184564]
[1755855111600,0.36180988,4327.5,4327.4,6.5607564]
[1755855113721,0.36180988,4327.5,4327.4,7.0184564]
[1755855113938,0.36180988,4327.5,4327.4,8.7954564]
[1755855114141,3.0,4328.6,4327.9,2.31057618]
[1755855114309,2.31030662,4328.5,4328.0,3.946]
[1755855114508,2.31032766,4328.4,4328.1,3.946]
[1755855114725,2.3107241,4327.7,4327.4,1.781]
[1755855114924,0.4486,4327.6,4327.5,3.946]
[1755855115311,0.7616,4327.6,4327.5,3.946]
[1755855116414,0.7616,4327.6,4327.4,1.781]
[1755855116415,1.06883398,4327.6,4327.4,1.781]
[1755855116626,2.759403,4327.5,4327.4,5.727]
[1755855116852,3.072403,4327.5,4327.4,5.727]
[1755855117140,0.7616,4327.5,4327.4,5.727]
[1755855117327,0.313,4327.5,4327.4,5.727]
[1755855118776,3.072403,4327.5,4327.4,5.727]
[1755855118916,0.313,4327.5,4327.4,5.727]
[1755855119116,0.4486,4327.9,4327.4,5.727]
[1755855119416,2.31076891,4327.6,4327.4,5.727]
[1755855119639,2.310803,4327.5,4327.4,5.727]
[1755855119944,2.623803,4327.5,4327.4,5.727]
[1755855120247,2.310803,4327.5,4327.4,5.727]
[1755855120447,2.67256819,4327.5,4327.4,5.727]
[1755855120628,2.98556819,4327.5,4327.4,5.727]
[1755855121834,3.43416819,4327.5,4327.4,5.727]
[1755855122039,3.43416819,4327.5,4327.4,1.781]
[1755855122235,3.43416819,4327.5,4327.4,5.726]
[1755855123725,3.43416819,4327.5,4327.4,1.781]
[1755855123929,4.00865528,4327.5,4327.4,5.726]
[1755855125967,4.00865528,4327.5,4327.4,0.004]
[1755855127773,7.50263753,4327.5,4327.4,0.004]
[1755855128978,7.48399847,4327.5,4327.4,0.004]
[1755855130264,8.10023167,4327.5,4327.4,0.004]
[1755855130563,7.48399847,4327.5,4327.4,0.004]
[1755855130936,8.10023167,4327.5,4327.4,0.004]
[1755855131583,7.48399847,4327.5,4327.4,0.004]
[1755855131954,8.14319847,4327.5,4327.4,0.004]
[1755855132484,12.08819847,4327.5,4327.4,0.004]
[1755855133251,12.08827827,4327.5,4327.4,0.004]
[1755855133687,12.4501138,4327.5,4327.4,0.004]
[1755855134057,5.3108564,4327.4,4327.3,0.004]
[1755855134286,11.04098421,4327.4,4327.3,0.004]
[1755855134490,2.97107002,4327.0,4326.9,0.004]
[1755855134791,26.72251274,4327.0,4326.9,0.004]
[1755855134988,27.15931274,4327.0,4326.9,0.004]
[1755855135191,26.33543432,4327.0,4326.9,0.004]
[1755855135356,29.52119931,4327.0,4326.9,0.004]
[1755855135551,29.88307475,4327.0,4326.9,0.004]
[1755855135757,29.05944939,4327.0,4326.9,0.004]
[1755855136178,28.71624346,4327.0,4326.9,0.004]
[1755855136386,20.78778943,4327.0,4326.9,0.004]
[1755855136787,20.78774653,4327.0,4326.9,0.004]
[1755855137467,50.78774653,4327.0,4326.9,0.004]
[1755855137988,50.78774653,4327.0,4325.2,1.778]
[1755855137989,5.97128368,4326.6,4325.2,1.778]
[1755855138288,20.59939117,4326.6,4325.2,1.778]
[1755855138459,21.03571262,4326.6,4325.2,1.778]
[1755855138885,51.03571262,4326.6,4325.2,1.778]
[1755855139099,52.26539805,4326.6,4325.2,1.778]
[1755855139657,35.9713371,4326.5,4324.8,0.02]
[1755855140005,9.8736395,4325.9,4324.8,0.4752]
[1755855140165,16.96704057,4325.9,4324.8,0.4752]
[1755855140490,17.18928895,4325.9,4324.8,0.4752]
[1755855140786,17.06060088,4325.9,4324.8,0.64990308]
[1755855141678,17.42255133,4325.9,4324.8,0.4752]
[1755855141862,19.46909129,4325.9,4324.8,0.4752]
[1755855142688,19.46909129,4325.9,4324.9,0.004]
[1755855144391,12.91145179,4325.9,4324.9,0.004]
[1755855144573,19.46909129,4325.9,4324.9,0.004]
[1755855145397,0.36195045,4325.9,4325.8,0.3294]
[1755855145560,0.36195045,4325.9,4325.8,0.7846]
[1755855145767,3.945,4326.3,4325.8,0.7846]
[1755855145974,6.25645572,4326.3,4325.9,0.4552]
[1755855146191,6.25645572,4326.3,4326.2,0.3094]
[1755855146589,3.945,4326.3,4326.2,0.3094]
[1755855147317,6.25644395,4326.3,4326.2,0.2977]
[1755855148502,2.31144395,4326.3,4326.2,0.2977]
[1755855148919,6.25639397,4326.4,4326.2,0.2977]
[1755855149074,3.945,4326.4,4326.2,0.2977]
[1755855149714,0.001,4327.0,4326.2,0.2977]
[1755855149913,0.36187337,4326.4,4326.3,0.4552]
[1755855150134,0.36187337,4326.4,4326.3,0.7646]
[1755855150310,3.0,4326.7,4326.3,0.7646]
[1755855150474,2.31128368,4326.6,4326.3,0.7646]
[1755855150774,6.945,4326.7,4326.3,0.3094]
[1755855150978,2.31158114,4326.1,4325.8,0.02]
[1755855151197,4.30687016,4326.4,4326.0,0.3094]
[1755855151599,4.30687016,4326.4,4326.1,0.4552]
[1755855151797,6.61826069,4326.4,4326.3,0.3094]
[1755855152430,2.67326069,4326.4,4326.3,0.3094]
[1755855154530,3.70124216,4326.4,4326.3,0.3094]
[1755855155295,1.38985163,4326.4,4326.3,0.3094]
[1755855155602,3.70124216,4326.4,4326.3,0.3094]
[1755855156196,0.36187016,4326.4,4326.3,0.3094]
[1755855156419,0.36107016,4326.4,4326.3,3.09915838]
[1755855156821,3.944,4327.3,4326.7,2.31120716]
[1755855157152,2.31081579,4327.5,4326.9,0.3094]
[1755855157355,0.49453752,4327.4,4326.9,0.3094]
[1755855157524,2.31089277,4327.4,4326.9,0.3094]
[1755855157847,2.31086674,4327.4,4326.9,0.7646]
[1755855158457,0.001,4327.5,4326.9,0.7646]
[1755855158458,2.31094707,4327.3,4326.9,0.7646]
[1755855158642,2.31096887,4327.2,4326.9,0.7646]
[1755855158959,2.31096887,4327.2,4326.9,0.3094]
[1755855159473,7.0046395,4327.5,4326.9,0.3094]
[1755855159770,2.31096589,4327.2,4326.9,0.3094]
[1755855160062,0.36280782,4327.0,4326.9,0.3094]
[1755855163753,0.36280782,4327.0,4326.5,0.02311337]
[1755855163754,2.31128368,4326.6,4326.5,0.02311337]
[1755855163926,2.61438368,4326.6,4326.5,0.02311337]
[1755855164128,2.31128368,4326.6,4326.5,0.31471337]
[1755855164461,8.86892318,4326.6,4326.5,0.2916]
[1755855164758,2.31127239,4326.7,4326.3,1.782]
[1755855164960,2.31132085,4326.6,4326.3,1.782]
[1755855165875,2.27457395,4326.6,4326.3,1.782]
[1755855166077,2.31134564,4326.5,4326.3,0.004]
[1755855166676,2.31128928,4326.6,4326.4,0.2916]
[1755855166873,2.97632994,4326.5,4326.3,0.004]
[1755855167178,2.31139053,4326.4,4326.3,0.004]
[1755855167327,2.61449053,4326.4,4326.3,0.004]
[1755855168435,0.3031,4326.4,4326.3,0.004]
[1755855168637,2.3105371,4326.5,4326.3,0.004]
[1755855168826,0.446,4326.6,4326.3,0.004]
[1755855169295,2.75729022,4326.6,4326.3,0.004]